bitfinex-derivatives/quotes_BTCF0:USTF0_20250929
["timestamp","ask_amount","ask_price","bid_price","bid_amount"]
[1759167887857,0.21148847,114010.0,114000.0,0.74320546]
[1759167890467,0.21148847,114010.0,114000.0,0.002]
[1759167892668,0.21148847,114010.0,114000.0,0.02554179]
[1759167897067,0.21148847,114010.0,114000.0,0.37460295]
[1759167899074,0.21148847,114010.0,114000.0,0.02554179]
[1759167900977,0.59207379,114010.0,114000.0,0.02554179]
[1759167901164,0.24301263,114010.0,114000.0,0.02554179]
[1759167902175,0.24301263,114010.0,114000.0,0.37460295]
[1759167904563,0.24301263,114010.0,114000.0,0.02554179]
[1759167904767,0.56054963,114010.0,114000.0,0.02554179]
[1759167904973,0.21148847,114010.0,114000.0,0.02554179]
[1759167905166,0.56054963,114010.0,114000.0,0.02554179]
[1759167905367,0.59207379,114010.0,114000.0,0.02554179]
[1759167907377,0.56054963,114010.0,114000.0,0.02554179]
[1759167908874,0.21148847,114010.0,114000.0,0.02554179]
[1759167909074,0.56054963,114010.0,114000.0,0.02554179]
[1759167911480,0.21148847,114010.0,114000.0,0.02554179]
[1759167912267,0.21148847,114010.0,114000.0,0.37460295]
[1759167913677,0.24301263,114010.0,114000.0,0.35106116]
[1759167914674,0.29029887,114010.0,114000.0,0.35106116]
[1759167914875,0.24301263,114010.0,114000.0,0.35106116]
[1759167918075,0.24301263,114010.0,114000.0,0.002]
[1759167922978,0.29029887,114010.0,114000.0,0.002]
[1759167923182,0.29029887,114010.0,114000.0,0.35106116]
[1759167923888,0.21148847,114010.0,114000.0,0.37462866]
[1759167928282,0.24301263,114010.0,114000.0,0.37462866]
[1759167928478,0.21148847,114010.0,114000.0,0.37462866]
[1759167928890,0.24301263,114010.0,114000.0,0.37462866]
[1759167929180,0.21148847,114010.0,114000.0,0.37462866]
[1759167929380,0.24301263,114010.0,114000.0,0.37462866]
[1759167930186,0.24301263,114010.0,114000.0,0.0255675]
[1759167932188,0.59207379,114010.0,114000.0,0.0255675]
[1759167939883,0.95287379,114010.0,114000.0,0.0255675]
[1759167941382,0.24301263,114010.0,114000.0,0.0255675]
[1759167941991,1.01176847,114010.0,114000.0,0.0255675]
[1759167942189,1.01176847,114010.0,114000.0,0.02556429]
[1759167942394,1.36080146,114010.0,114000.0,0.37459728]
[1759167945393,1.01176847,114010.0,114000.0,0.37459728]
[1759167945596,1.01176847,114010.0,114000.0,0.81129187]
[1759167945788,0.21148847,114010.0,114000.0,0.81129187]
[1759167946995,0.21148847,114010.0,114000.0,0.72363027]
[1759167947193,0.24301263,114010.0,114000.0,0.72363027]
[1759167948096,0.21148847,114010.0,114000.0,0.72363027]
[1759167948398,0.05231862,114010.0,114000.0,1.17209187]
[1759167948593,0.05231862,114010.0,114000.0,1.57987188]
[1759167949099,0.13997252,114010.0,114000.0,1.60343037]
[1759167949698,0.13997252,114010.0,114000.0,0.8818059]
[1759167950001,0.13997252,114010.0,114000.0,2.29249028]
[1759167952097,0.48900551,114010.0,114000.0,2.29249028]
[1759167952404,0.13997252,114010.0,114000.0,2.29249028]
[1759167952907,0.13997252,114010.0,114000.0,2.31604042]
[1759167953609,0.13997252,114010.0,114000.0,2.29249028]
[1759167953906,0.13997252,114010.0,114000.0,2.28469863]
[1759167954700,0.13997252,114010.0,114000.0,1.48441863]
[1759167954902,0.48900551,114010.0,114000.0,0.38635265]
[1759167955103,0.52052967,114010.0,114000.0,1.51207299]
[1759167955306,0.52052967,114010.0,114000.0,0.002]
[1759167955507,0.52052967,114010.0,114000.0,0.35103299]
[1759167957611,0.59017301,114010.0,114000.0,0.35103299]
[1759167958813,0.57228439,114010.0,114000.0,0.35103299]
[1759167960103,0.2232514,114010.0,114000.0,0.35103299]
[1759167960307,0.57228439,114010.0,114000.0,0.35103299]
[1759167960505,0.57228439,114010.0,114000.0,0.78772758]
[1759167960709,0.2232514,114010.0,114000.0,0.78772758]
[1759167961009,0.57228439,114010.0,114000.0,0.70006598]
[1759167961312,0.2232514,114010.0,114000.0,0.70006598]
[1759167962112,0.2232514,114010.0,114000.0,0.35103299]
[1759167962113,0.57228439,114010.0,114000.0,0.35103299]
[1759167963714,0.57228439,114010.0,114000.0,0.40592994]
[1759167963715,0.54076023,114010.0,114000.0,0.40592994]
[1759167969917,0.19172724,114010.0,114000.0,0.40592994]
[1759167970215,0.19172724,114010.0,114000.0,0.84263736]
[1759167970820,0.19172724,114010.0,114000.0,0.81907188]
[1759167973523,0.1220839,114010.0,114000.0,0.81907188]
[1759167973816,0.1220839,114010.0,114000.0,0.84263749]
[1759167974825,0.1220839,114010.0,114000.0,0.81907188]
[1759167976615,0.1220839,114010.0,114000.0,1.17987188]
[1759167982617,0.1220839,114010.0,114000.0,0.4818059]
[1759167982819,0.1220839,114010.0,114000.0,1.17987188]
[1759167987727,0.1220839,114010.0,114000.0,1.20342165]
[1759167988127,0.1220839,114010.0,114000.0,0.50535567]
[1759167988326,0.1220839,114010.0,114000.0,1.17987188]
[1759167998235,0.1220839,114010.0,114000.0,1.09221028]
[1759167998836,0.47111689,114010.0,114000.0,1.09221028]
[1759168000135,0.1220839,114010.0,114000.0,1.09221028]
[1759168000337,0.47111689,114010.0,114000.0,1.09221028]
[1759168000929,0.54064809,114010.0,114000.0,0.74317729]
[1759168002835,0.54064809,114010.0,114000.0,1.54313729]
[1759168003632,0.1916151,114010.0,114000.0,1.54313729]
[1759168003836,0.1916151,114010.0,114000.0,1.53534761]
[1759168003837,0.54064809,114010.0,114000.0,1.53534761]
[1759168004137,0.54064809,114010.0,114000.0,1.8843806]
[1759168004334,0.1916151,114010.0,114000.0,1.53532609]
[1759168004733,0.1916151,114010.0,114000.0,1.51177147]
[1759168005939,0.1916151,114010.0,114000.0,1.53532715]
[1759168012844,0.1916151,114010.0,114000.0,1.62298875]
[1759168013647,0.1916151,114010.0,114000.0,1.63077737]
[1759168017743,0.1916151,114010.0,114000.0,1.54311577]
[1759168021046,0.1916151,114010.0,114000.0,1.63077737]
[1759168023345,0.1916151,114010.0,114000.0,1.65433031]
[1759168023939,0.1916151,114010.0,114000.0,1.63077737]
[1759168024345,0.1916151,114010.0,114000.0,1.2817659]
[1759168024547,0.1916151,114010.0,114000.0,1.54311577]
[1759168026246,0.1916151,114010.0,114000.0,1.54287577]
[1759168027749,0.1916151,114010.0,114000.0,1.18207577]
[1759168030252,0.1916151,114010.0,114000.0,1.26973747]
[1759168032350,0.1916151,114010.0,114000.0,1.63053747]
[1759168032555,0.1006139,114010.0,114000.0,1.63053747]
[1759168033055,0.1006139,114010.0,114000.0,1.97954894]
[1759168033755,0.1006139,114010.0,114000.0,1.67755392]
[1759168036359,0.1006139,114010.0,114000.0,1.58989222]
[1759168036958,0.1006139,114010.0,114000.0,1.54287577]
[1759168037459,0.1006139,114010.0,114000.0,1.32854225]
[1759168037660,0.1006139,114010.0,114000.0,1.67755372]
[1759168039555,0.1006139,114010.0,114000.0,1.63053727]
[1759168042949,0.1006139,114010.0,114000.0,1.2815258]
[1759168043150,0.1006139,114010.0,114000.0,1.63053727]
[1759168043659,0.13213806,114010.0,114000.0,1.62271536]
[1759168046262,0.13213806,114010.0,114000.0,1.53505386]
[1759168047063,0.13213806,114010.0,114000.0,1.62271536]
[1759168048558,0.13213806,114010.0,114000.0,1.97172683]
[1759168049567,0.1006139,114010.0,114000.0,1.97172683]
[1759168050864,0.1006139,114010.0,114000.0,1.62271536]
[1759168053865,0.1006139,114010.0,114000.0,1.63053727]
[1759168055767,4e-05,114010.0,114000.0,1.97954874]
[1759168056664,4e-05,114010.0,114000.0,1.99522089]
[1759168056863,4e-05,114010.0,114000.0,2.39522089]
[1759168057859,0.0876939,114010.0,114000.0,2.39522089]
[1759168059063,0.0876939,114010.0,114000.0,1.69719795]
[1759168059260,4e-05,114010.0,114000.0,2.39522089]
[1759168059463,4e-05,114010.0,114000.0,1.99522089]
[1759168059666,4e-05,114010.0,114000.0,2.42652339]
[1759168059865,4e-05,114010.0,114000.0,2.39522089]
[1759168060466,4e-05,114010.0,114000.0,1.99522089]
[1759168061071,4e-05,114010.0,114000.0,1.29719795]
[1759168061274,0.0876939,114010.0,114000.0,1.90755939]
[1759168061474,0.1011239,114010.0,114000.0,1.90755939]
[1759168061875,0.1011239,114010.0,114000.0,1.99522089]
[1759168062276,0.1011239,114010.0,114000.0,1.29719795]
[1759168062478,0.1011239,114010.0,114000.0,1.99522089]
[1759168063968,0.1011239,114010.0,114000.0,2.02651782]
[1759168064272,0.1011239,114010.0,114000.0,1.67750645]
[1759168064479,0.1221739,114010.0,114000.0,1.59188485]
[1759168065281,0.1221739,114010.0,114000.0,1.63253]
[1759168066476,0.1221739,114010.0,114000.0,1.98146027]
[1759168072982,0.87114477,114010.0,114000.0,0.40573083]
[1759168073184,0.88885046,114010.0,114000.0,1.1756339]
[1759168073383,0.87114477,114010.0,114000.0,1.1756339]
[1759168073686,0.87114477,114010.0,114000.0,1.20693083]
[1759168073873,0.5221739,114010.0,114000.0,1.20693083]
[1759168074080,0.87114477,114010.0,114000.0,1.20693083]
[1759168076186,0.5221739,114010.0,114000.0,1.20693083]
[1759168076388,0.94276534,114010.0,114000.0,1.1834678]
[1759168076789,0.94276534,114010.0,114000.0,1.53243867]
[1759168077186,0.94276534,114010.0,114000.0,1.62010027]
[1759168077389,0.59379447,114010.0,114000.0,1.62010027]
[1759168078595,0.94276534,114010.0,114000.0,1.62010027]
[1759168078800,0.59379447,114010.0,114000.0,1.62010027]
[1759168080191,0.59379447,114010.0,114000.0,1.98090027]
[1759168082197,0.59379447,114010.0,114000.0,1.28295853]
[1759168082394,0.59379447,114010.0,114000.0,1.98090027]
[1759168086198,0.59379447,114010.0,114000.0,1.55661257]
[1759168086592,0.94276534,114010.0,114000.0,1.55661257]
[1759168087098,0.59379447,114010.0,114000.0,1.55661257]
[1759168087599,0.59379447,114010.0,114000.0,0.75469257]
[1759168087802,0.59379447,114010.0,114000.0,1.55665257]
[1759168089095,0.59379447,114010.0,114000.0,0.75469257]
[1759168089294,0.59379447,114010.0,114000.0,1.55649257]
[1759168089603,0.59379447,114010.0,114000.0,0.85855083]
[1759168089897,0.59379447,114010.0,114000.0,1.64415417]
[1759168093907,0.59379447,114010.0,114000.0,1.61285724]
[1759168094507,0.59379447,114010.0,114000.0,0.9149155]
[1759168094708,0.59379447,114010.0,114000.0,1.61285724]
[1759168100008,0.59379447,114010.0,114000.0,1.97365724]
[1759168103708,0.59379447,114010.0,114000.0,1.98150027]
[1759168104713,0.59379447,114010.0,114000.0,1.28355853]
[1759168104911,0.59379447,114010.0,114000.0,1.98150027]
[1759168106913,0.59379447,114010.0,114000.0,1.89383867]
[1759168109510,0.59379447,114010.0,114000.0,2.02851662]
[1759168111814,0.59379447,114010.0,114000.0,1.94085512]
[1759168112210,0.59379447,114010.0,114000.0,1.24291338]
[1759168112516,0.94276534,114010.0,114000.0,1.94025512]
[1759168112719,0.59379447,114010.0,114000.0,1.94025512]
[1759168114916,0.59379447,114010.0,114000.0,1.24231338]
[1759168115118,0.59379447,114010.0,114000.0,1.94025512]
[1759168118321,0.59379447,114010.0,114000.0,1.24231338]
[1759168118619,0.59379447,114010.0,114000.0,1.94025512]
[1759168118818,0.94276534,114010.0,114000.0,1.94025512]
[1759168119420,0.19379447,114010.0,114000.0,1.94025512]
[1759168119616,0.54276534,114010.0,114000.0,1.94025512]
[1759168120420,0.54276534,114010.0,114000.0,1.89323867]
[1759168121221,0.19379447,114010.0,114000.0,1.89323867]
[1759168121420,0.19379447,114010.0,114000.0,1.94025512]
[1759168125027,0.19379447,114010.0,114000.0,1.24231338]
[1759168125220,0.19379447,114010.0,114000.0,1.94025512]
[1759168126221,0.54276534,114010.0,114000.0,1.94025512]
[1759168126425,0.19379447,114010.0,114000.0,1.59132967]
[1759168130830,0.19379447,114010.0,114000.0,1.67899117]
[1759168133834,0.19379447,114010.0,114000.0,1.65548732]
[1759168137927,0.19379447,114010.0,114000.0,1.30647103]
[1759168138329,0.19379447,114010.0,114000.0,1.56782582]
[1759168139534,0.19379447,114010.0,114000.0,1.65548732]
[1759168142641,0.08509057,114010.0,114000.0,2.00450361]
[1759168142844,0.08509057,114010.0,114000.0,1.98099101]
[1759168143043,0.17274437,114010.0,114000.0,1.98099101]
[1759168144042,0.17274437,114010.0,114000.0,1.63197472]
[1759168151952,0.17274437,114010.0,114000.0,1.28295843]
[1759168152153,0.17274437,114010.0,114000.0,1.63197472]
[1759168154655,0.17274437,114010.0,114000.0,1.28295843]
[1759168154856,0.17274437,114010.0,114000.0,1.63197472]
[1759168161259,0.17274437,114010.0,114000.0,1.98099101]
[1759168161655,0.17274437,114010.0,114000.0,1.63197472]
[1759168163362,0.17274437,114010.0,114000.0,1.98099101]
[1759168164566,0.17274437,114010.0,114000.0,1.63197472]
[1759168169363,0.17274437,114010.0,114000.0,1.67899117]
[1759168169562,0.17274437,114010.0,114000.0,1.32997488]
[1759168169762,0.17274437,114010.0,114000.0,1.67899117]
[1759168171072,0.17274437,114010.0,114000.0,1.32997488]
[1759168171266,0.17274437,114010.0,114000.0,1.67899117]
[1759168171472,0.19479437,114010.0,114000.0,0.87779117]
[1759168171673,0.19479437,114010.0,114000.0,1.67759117]
[1759168174673,0.19479437,114010.0,114000.0,1.32857488]
[1759168174970,0.19479437,114010.0,114000.0,1.67759117]
[1759168175168,0.17274437,114010.0,114000.0,1.67759117]
[1759168177571,0.17274437,114010.0,114000.0,1.63057472]
[1759168178877,0.17274437,114010.0,114000.0,1.67759117]
[1759168180281,0.17274437,114010.0,114000.0,1.63057472]
[1759168180681,0.17274437,114010.0,114000.0,1.67759117]
[1759168181777,0.17274437,114010.0,114000.0,1.63057472]
[1759168182182,0.17274437,114010.0,114000.0,1.67759117]
[1759168183883,0.20426853,114010.0,114000.0,1.62280724]
[1759168184283,0.17274437,114010.0,114000.0,1.63057472]
[1759168187588,0.15931437,114010.0,114000.0,1.97959101]
[1759168188293,0.0876938,114010.0,114000.0,1.97943239]
[1759168188682,4e-05,114010.0,114000.0,1.97166317]
[1759168188883,4e-05,114010.0,114000.0,2.72836937]
[1759168189087,4e-05,114010.0,114000.0,2.77538582]
[1759168189386,4e-05,114010.0,114000.0,2.72836937]
[1759168189788,4e-05,114010.0,114000.0,2.37943239]
[1759168189991,4e-05,114010.0,114000.0,2.72836937]
[1759168190889,0.0876938,114010.0,114000.0,2.72836937]
[1759168193598,4e-05,114010.0,114000.0,2.32836937]
[1759168193793,4e-05,114010.0,114000.0,2.34408889]
[1759168201508,0.100704,114030.0,114020.0,0.0876461]
[1759168201705,0.100704,114030.0,114020.0,1.96949091]
[1759168202208,0.1016546,114040.0,114030.0,0.0876385]
[1759168202410,0.1016546,114040.0,114030.0,1.16979173]
[1759168202711,0.1234346,114040.0,114030.0,0.47191777]
[1759168202909,0.1234346,114040.0,114030.0,0.82085475]
[1759168203308,0.1234346,114040.0,114030.0,0.47191777]
[1759168203309,0.5234346,114040.0,114030.0,0.47191777]
[1759168203616,0.5234346,114040.0,114030.0,1.16979173]
[1759168204907,0.5016546,114040.0,114030.0,1.16979173]
[1759168205414,0.5016546,114040.0,114030.0,1.14631246]
[1759168205805,0.41402,114040.0,114030.0,1.15527542]
[1759168206113,4e-05,114040.0,114030.0,1.18659655]
[1759168210515,4e-05,114040.0,114030.0,1.21001264]
[1759168211314,4e-05,114040.0,114030.0,1.28028874]
[1759168212115,0.0876708,114040.0,114030.0,1.28028874]
[1759168215014,4e-05,114040.0,114030.0,1.28028874]
[1759168217920,4e-05,114040.0,114030.0,2.05279133]
[1759168218123,0.1015811,114060.0,114040.0,0.0876281]
[1759168218324,0.1015811,114060.0,114050.0,1.94573706]
[1759168218624,4e-05,114060.0,114050.0,2.36127561]
[1759168218819,4e-05,114060.0,114050.0,2.76127561]
[1759168221011,4e-05,114060.0,114050.0,3.11021259]
[1759168221415,4e-05,114060.0,114050.0,3.07889146]
[1759168221710,4e-05,114060.0,114050.0,2.72995448]
[1759168223826,4e-05,114060.0,114050.0,3.07889146]
[1759168224526,0.1015256,114080.0,114070.0,0.0876077]
[1759168224825,0.1015256,114080.0,114070.0,1.94560166]
[1759168226218,0.1015256,114080.0,114070.0,1.95439819]
[1759168227834,0.1015256,114080.0,114070.0,1.94560166]
[1759168229325,0.1015256,114080.0,114070.0,1.16012]
[1759168229520,0.1015256,114080.0,114070.0,1.85799396]
[1759168229720,0.1244356,114080.0,114070.0,1.14813698]
[1759168229921,0.1244356,114080.0,114070.0,1.59654468]
[1759168232428,0.1244356,114080.0,114070.0,1.16]
[1759168232629,0.1244356,114080.0,114070.0,1.59654468]
[1759168235730,0.1244356,114080.0,114070.0,1.94548166]
[1759168246830,0.1244356,114080.0,114070.0,1.94528166]
[1759168247441,0.1244356,114080.0,114070.0,1.96869908]
[1759168248243,0.1244356,114080.0,114070.0,1.61935827]
[1759168253150,0.1244356,114080.0,114070.0,1.27082512]
[1759168253345,0.1244356,114080.0,114070.0,1.61935827]
[1759168255052,0.1244356,114080.0,114070.0,1.27082512]
[1759168255352,0.1244356,114080.0,114070.0,1.61935827]
[1759168255652,0.1244356,114080.0,114070.0,1.27082512]
[1759168255844,0.1244356,114080.0,114070.0,1.61935827]
[1759168257954,0.1015256,114080.0,114070.0,1.6506794]
[1759168259465,0.1015256,114080.0,114070.0,1.62726198]
[1759168259761,0.0876056,114080.0,114070.0,1.62726198]
[1759168260665,0.0876056,114080.0,114070.0,1.69738729]
[1759168267162,0.0876056,114080.0,114070.0,1.62726198]
[1759168269464,0.1002356,114080.0,114070.0,1.62726198]
[1759168269972,0.1002356,114080.0,114070.0,1.69695279]
[1759168270964,0.1002356,114080.0,114070.0,0.89795279]
[1759168271170,0.1218756,114080.0,114070.0,1.69671279]
[1759168272067,0.1218756,114080.0,114070.0,0.89795279]
[1759168272267,0.1218756,114080.0,114070.0,1.69671279]
[1759168272874,0.01263,114080.0,114070.0,1.69671279]
[1759168273070,0.13192986,114100.0,114090.0,0.0875923]
[1759168273272,0.13192986,114100.0,114090.0,1.9441786]
[1759168273468,0.1004057,114100.0,114090.0,1.99898403]
[1759168273668,0.1004057,114100.0,114090.0,1.30191773]
[1759168273872,0.13192986,114100.0,114090.0,1.9441786]
[1759168274274,0.1004057,114100.0,114090.0,1.9441786]
[1759168278079,0.1004057,114100.0,114090.0,1.59564545]
[1759168278472,0.1004057,114100.0,114090.0,1.9441786]
[1759168279479,0.1004057,114100.0,114090.0,1.59564545]
[1759168279682,0.1004057,114100.0,114090.0,1.9441786]
[1759168279982,0.1004057,114100.0,114090.0,1.59564545]
[1759168280176,0.1004057,114100.0,114090.0,1.9441786]
[1759168280780,0.1004057,114100.0,114090.0,1.2471123]
[1759168281083,0.1004057,114100.0,114090.0,1.9441786]
[1759168282677,0.1004057,114100.0,114090.0,1.59564545]
[1759168283781,0.1004057,114100.0,114090.0,1.61909561]
[1759168284577,0.1004057,114100.0,114090.0,1.96762876]
[1759168285485,0.1004057,114100.0,114090.0,1.27056246]
[1759168285688,0.1004057,114100.0,114090.0,1.96762876]
[1759168285887,0.1004057,114100.0,114090.0,1.27056246]
[1759168286089,0.1004057,114100.0,114090.0,1.61909561]
[1759168286278,0.1004057,114100.0,114090.0,1.53150331]
[1759168287089,0.1004057,114100.0,114090.0,1.61909561]
[1759168287885,4e-05,114100.0,114090.0,2.32842876]
[1759168288091,4e-05,114100.0,114090.0,2.33629599]
[1759168288295,0.01329,114100.0,114090.0,2.33629599]
[1759168288687,0.1008746,114100.0,114090.0,1.63922969]
[1759168288887,0.1008746,114100.0,114090.0,2.33629599]
[1759168289189,0.1008746,114100.0,114090.0,1.63922969]
[1759168289388,0.1008746,114100.0,114090.0,2.33629599]
[1759168289992,0.1008746,114100.0,114090.0,1.63922969]
[1759168290191,0.1008746,114100.0,114090.0,2.33629599]
[1759168291095,0.1008746,114100.0,114090.0,2.35972501]
[1759168292195,0.1008746,114100.0,114090.0,2.33629599]
[1759168294503,0.01329,114100.0,114090.0,2.33629599]
[1759168294694,4e-05,114100.0,114090.0,2.73629599]
[1759168295202,4e-05,114100.0,114090.0,2.03922969]
[1759168295403,0.0876247,114100.0,114090.0,2.73629599]
[1759168299502,0.0876247,114100.0,114090.0,2.33629599]
[1759168301207,0.0876247,114100.0,114090.0,2.38327769]
[1759168303206,0.1008747,114100.0,114090.0,2.38327769]
[1759168304304,0.0876247,114100.0,114090.0,2.38327769]
[1759168304900,4e-05,114100.0,114090.0,2.38327769]
[1759168308613,0.0876246,114100.0,114090.0,2.38327769]
[1759168310309,0.0876246,114100.0,114090.0,2.38284425]
[1759168311313,0.0876246,114100.0,114090.0,2.35152686]
[1759168312002,0.1012646,114100.0,114090.0,2.35152686]
[1759168312716,0.1012646,114100.0,114090.0,1.654894]
[1759168312917,0.1239446,114100.0,114090.0,1.55280686]
[1759168313117,0.1239446,114100.0,114090.0,2.38490615]
[1759168313322,0.1239446,114100.0,114090.0,2.35360686]
[1759168314223,0.1239446,114100.0,114090.0,2.35960686]
[1759168315526,0.5239446,114100.0,114090.0,0.0529817]
[1759168315725,0.5239446,114100.0,114090.0,1.54814751]
[1759168316120,0.5239446,114100.0,114090.0,0.38562751]
[1759168316121,0.87226103,114100.0,114090.0,0.38562751]
[1759168316427,0.5239446,114100.0,114090.0,1.18754751]
[1759168316726,0.5239446,114100.0,114090.0,1.18750751]
[1759168316918,0.87226103,114100.0,114090.0,1.18750751]
[1759168317423,0.87226103,114100.0,114090.0,1.54830751]
[1759168318529,0.5239446,114100.0,114090.0,1.54830751]
[1759168321327,0.5239446,114100.0,114090.0,1.63589981]
[1759168321526,0.5239446,114100.0,114090.0,1.98421624]
[1759168322730,0.5239446,114100.0,114090.0,1.63589981]
[1759168322929,0.5012646,114100.0,114090.0,1.98421624]
[1759168323930,0.5012646,114100.0,114090.0,1.95290516]
[1759168325030,0.5012646,114100.0,114090.0,1.2562723]
[1759168325231,0.5012646,114100.0,114090.0,1.95290516]
[1759168326933,0.5012646,114100.0,114090.0,1.60458873]
[1759168329438,0.5012646,114100.0,114090.0,1.95290516]
[1759168333141,0.5012646,114100.0,114090.0,1.2562723]
[1759168333441,0.5012646,114100.0,114090.0,1.95290516]
[1759168333838,0.5012646,114100.0,114090.0,1.98421624]
[1759168335540,0.5012646,114100.0,114090.0,1.63589981]
[1759168337240,0.5012646,114100.0,114090.0,1.98421624]
[1759168338143,0.5012646,114100.0,114090.0,2.03119794]
[1759168338934,0.5012646,114100.0,114090.0,1.98421624]
[1759168339242,0.1012646,114100.0,114090.0,1.98421624]
[1759168339445,0.1012646,114100.0,114090.0,2.03119794]
[1759168339743,0.1012646,114100.0,114090.0,1.98421624]
[1759168340336,0.1012646,114100.0,114090.0,2.03119794]
[1759168340541,0.01368,114100.0,114090.0,2.02519794]
[1759168341040,0.01368,114100.0,114090.0,2.00488686]
[1759168350746,0.1012646,114100.0,114090.0,2.00488686]
[1759168351148,0.1012646,114100.0,114090.0,2.00528686]
[1759168353549,0.1012646,114100.0,114090.0,1.308654]
[1759168353748,0.1012646,114100.0,114090.0,2.00528686]
[1759168359946,0.1012646,114100.0,114090.0,2.00452686]
[1759168361155,0.1012646,114100.0,114090.0,1.307894]
[1759168361450,0.1012646,114100.0,114090.0,2.00452686]
[1759168362752,0.01368,114100.0,114090.0,2.00452686]
[1759168363255,0.1012646,114100.0,114090.0,2.00452686]
[1759168363952,4e-05,114100.0,114090.0,2.03587803]
[1759168364148,4e-05,114100.0,114090.0,2.78419446]
[1759168364348,4e-05,114100.0,114090.0,2.75284329]
[1759168365948,0.0876246,114100.0,114090.0,2.75284329]
[1759168366351,0.0876246,114100.0,114090.0,2.40452686]
[1759168367258,4e-05,114100.0,114090.0,2.40452686]
[1759168367557,0.0876246,114100.0,114090.0,2.40452686]
[1759168367754,0.1008346,114100.0,114090.0,1.20300686]
[1759168367951,0.14538774,114170.0,114090.0,2.00960268]
[1759168368155,0.01278,114190.0,114180.0,0.097516]
[1759168368348,0.03551,114190.0,114180.0,1.87762929]
[1759168368653,0.01282,114200.0,114190.0,0.0875155]
[1759168368857,0.03551,114210.0,114200.0,0.01]
[1759168369047,0.1230102,114210.0,114200.0,0.74321988]
[1759168369248,0.03551,114210.0,114200.0,0.71978767]
[1759168369453,0.43551,114210.0,114200.0,1.877212]
[1759168369959,0.43551,114210.0,114200.0,1.51889557]
[1759168370159,0.43551,114210.0,114200.0,1.52889557]
[1759168370360,0.43551,114210.0,114200.0,1.51889557]
[1759168370560,0.43551,114210.0,114200.0,1.52889557]
[1759168370748,0.43551,114210.0,114200.0,1.51889557]
[1759168370949,0.43551,114210.0,114200.0,0.83226271]
[1759168371155,0.43551,114210.0,114200.0,1.52889557]
[1759168371750,0.43551,114210.0,114200.0,1.51574076]
[1759168372356,0.43551,114210.0,114200.0,1.16682183]
[1759168375164,0.5230102,114210.0,114200.0,1.16682183]
[1759168375364,0.5230102,114210.0,114200.0,1.07931393]
[1759168375761,0.5230102,114210.0,114200.0,1.16682183]
[1759168376159,0.5230102,114210.0,114200.0,1.07931393]
[1759168378369,0.5230102,114210.0,114200.0,1.16682173]
[1759168378667,0.5230102,114210.0,114200.0,1.07931393]
[1759168379971,0.5230102,114210.0,114200.0,0.7316]
[1759168380170,0.5230102,114210.0,114200.0,1.07931393]
[1759168380473,0.5230102,114210.0,114200.0,1.09212779]
[1759168381867,0.5230102,114210.0,114200.0,1.07931393]
[1759168384176,1.3463302,114210.0,114200.0,1.07931393]
[1759168384370,1.3463302,114210.0,114200.0,1.06931393]
[1759168386572,0.43551,114210.0,114200.0,1.15682183]
[1759168386877,1.25839,114210.0,114200.0,1.15682183]
[1759168387071,0.03551,114210.0,114200.0,1.15682183]
[1759168387272,0.45055,114210.0,114200.0,1.15682183]
[1759168387677,0.85055,114210.0,114200.0,1.15682183]
[1759168389078,0.43551,114210.0,114200.0,1.15682183]
[1759168389377,1.25743,114210.0,114200.0,1.15682183]
[1759168390082,1.3449304,114210.0,114200.0,1.15682183]
[1759168390582,0.5230104,114210.0,114200.0,1.15682183]
[1759168390779,1.3448104,114210.0,114200.0,1.15682183]
[1759168391381,1.3448103,114210.0,114200.0,1.15682183]
[1759168391974,1.3448103,114210.0,114200.0,1.15682193]
[1759168392784,1.3448103,114210.0,114200.0,0.809108]
[1759168393079,1.3448103,114210.0,114200.0,1.15682193]
[1759168393590,0.5230103,114210.0,114200.0,1.15682193]
[1759168393881,1.3439303,114210.0,114200.0,1.17876361]
[1759168396189,0.5230103,114210.0,114200.0,1.17876361]
[1759168396381,1.3429303,114210.0,114200.0,1.17876361]
[1759168397390,1.3429303,114210.0,114200.0,1.20219582]
[1759168398386,1.3429303,114210.0,114200.0,1.21009884]
[1759168399195,1.3421703,114210.0,114200.0,1.21009884]
[1759168399901,1.3737703,114210.0,114200.0,1.12259084]
[1759168400701,1.3734103,114210.0,114200.0,1.21009884]
[1759168400895,0.5546103,114210.0,114200.0,1.21009884]
[1759168401101,1.3734103,114210.0,114200.0,1.21009884]
[1759168401799,0.88567,114210.0,114200.0,1.55781277]
[1759168401998,0.88567,114210.0,114200.0,1.21009884]
[1759168402300,0.06711,114210.0,114200.0,2.00479447]
[1759168402502,0.06711,114210.0,114200.0,1.62574531]
[1759168402503,0.45251,114210.0,114200.0,1.62574531]
[1759168402700,0.45251,114210.0,114200.0,1.22574531]
[1759168403400,0.88555,114210.0,114200.0,1.22574531]
[1759168403602,0.9730503,114210.0,114200.0,0.87803138]
[1759168404006,0.9730503,114210.0,114200.0,1.22574531]
[1759168404704,0.9730503,114210.0,114200.0,1.13823731]
[1759168406405,0.1546103,114210.0,114200.0,1.13823731]
[1759168406605,0.9729303,114210.0,114200.0,1.13823731]
[1759168407705,0.9729303,114210.0,114200.0,1.11629563]
[1759168408805,2.46960818,114210.0,114200.0,1.11629563]
[1759168410103,2.46960818,114210.0,114200.0,0.7685817]
[1759168410307,2.81732211,114210.0,114200.0,0.75288123]
[1759168410810,2.46960818,114210.0,114200.0,1.10059516]
[1759168412005,2.46960818,114210.0,114200.0,1.11059516]
[1759168413104,2.46732818,114210.0,114200.0,1.11059516]
[1759168413312,2.46732818,114210.0,114200.0,0.76288123]
[1759168413608,2.46732818,114210.0,114200.0,1.11059516]
[1759168414001,2.46732818,114210.0,114200.0,1.10277167]
[1759168414201,2.53577175,114210.0,114200.0,1.09277167]
[1759168414602,2.53577175,114210.0,114200.0,1.10277167]
[1759168415011,2.53577175,114210.0,114200.0,0.75505774]
[1759168415213,2.53577175,114210.0,114200.0,1.10277167]
[1759168415809,2.56727771,114210.0,114200.0,1.07931393]
[1759168416412,2.56727771,114210.0,114200.0,1.10277167]
[1759168416809,2.53577175,114210.0,114200.0,1.10277167]
[1759168417403,2.56727771,114210.0,114200.0,1.10277167]
[1759168417714,2.56727771,114210.0,114200.0,1.07931393]
[1759168418521,2.56727771,114210.0,114200.0,1.10277167]
[1759168418713,2.56727771,114210.0,114200.0,1.09277167]
[1759168419014,2.53577175,114210.0,114200.0,1.10277167]
[1759168419215,2.56727771,114210.0,114200.0,1.10277167]
[1759168420420,1.75123771,114210.0,114200.0,1.10277167]
[1759168420620,2.56595771,114210.0,114200.0,1.10277167]
[1759168420820,2.56595771,114210.0,114200.0,1.07931393]
[1759168421217,2.56595771,114210.0,114200.0,1.06931393]
[1759168421418,2.56595771,114210.0,114200.0,1.07931393]
[1759168422110,2.56595771,114210.0,114200.0,1.06931393]
[1759168422310,2.56595771,114210.0,114200.0,1.07931393]
[1759168423519,2.56595771,114210.0,114200.0,1.10277167]
[1759168423520,2.46520818,114210.0,114200.0,1.10277167]
[1759168423718,2.49671414,114210.0,114200.0,1.50277167]